fUST/lending_fUST_20250924
["ID","MTS","AMOUNT","RATE_DAILY","PERIOD"]
[387388839,1758711047668,-480.0,0.00019726,2]
[387388840,1758711047677,-480.0,0.00019726,2]
[387388841,1758711047687,-480.0,0.00019726,2]
[387388842,1758711047697,-184.0878475,0.00019726,2]
[387388843,1758711047707,-480.0,0.00019726,2]
[387388844,1758711047716,-480.0,0.00019726,2]
[387388845,1758711047725,-480.0,0.00019726,2]
[387388846,1758711047735,-480.0,0.00019726,2]
[387388848,1758711047745,-249.16849712,0.00019726,2]
[387388849,1758711047754,-480.0,0.00019726,2]
[387388852,1758711047764,-480.0,0.00019726,2]
[387388854,1758711047774,-480.0,0.00019726,2]
[387388856,1758711047783,-316.4973062,0.00019726,2]
[387388858,1758711047793,-528.92,0.00019726,2]
[387388860,1758711047802,-512.9911209,0.00019726,2]
[387388862,1758711047812,-480.0,0.00019726,2]
[387388864,1758711047821,-480.0,0.00019726,2]
[387388866,1758711047830,-480.0,0.00019726,2]
[387388868,1758711047841,-480.0,0.00019726,2]
[387388870,1758711047850,-480.0,0.00019726,2]
[387388872,1758711047859,-480.0,0.00019726,2]
[387388874,1758711047869,-480.0,0.00019726,2]
[387388876,1758711047879,-480.0,0.00019726,2]
[387388878,1758711047889,-938.58,0.00019726,2]
[387388880,1758711047898,-480.0,0.00019726,2]
[387388882,1758711047908,-480.0,0.00019726,2]
[387388884,1758711047917,-480.0,0.00019726,2]
[387388886,1758711047926,-480.0,0.00019726,2]
[387388888,1758711047936,-480.0,0.00019726,2]
[387388890,1758711047945,-480.0,0.00019726,2]
[387388891,1758711047954,-480.0,0.00019726,2]
[387388893,1758711047964,-480.0,0.00019726,2]
[387388895,1758711047974,-480.0,0.00019726,2]
[387388897,1758711047984,-480.0,0.00019726,2]
[387388899,1758711047993,-483.95768345,0.00019726,2]
[387388901,1758711048002,-480.0,0.00019726,2]
[387388903,1758711048011,-480.0,0.00019726,2]
[387388905,1758711048021,-480.0,0.00019726,2]
[387388907,1758711048031,-480.0,0.00019726,2]
[387388909,1758711048040,-480.0,0.00019726,2]
[387388911,1758711048049,-480.0,0.00019726,2]
[387388913,1758711048059,-623.25,0.00019726,2]
[387388915,1758711048068,-531.92,0.00019726,2]
[387388917,1758711048078,-480.0,0.00019726,2]
[387388919,1758711048087,-480.0,0.00019726,2]
[387388921,1758711048097,-480.0,0.00019726,2]
[387388923,1758711048107,-526.82,0.00019726,2]
[387388926,1758711048117,-403.28017414,0.00019726,2]
[387388927,1758711048127,-480.0,0.00019726,2]
[387388930,1758711048137,-480.0,0.00019726,2]
[387388932,1758711048147,-169.37623653,0.00019726,2]
[387388934,1758711048157,-480.0,0.00019726,2]
[387388936,1758711048167,-480.0,0.00019726,2]
[387388938,1758711048177,-480.0,0.00019726,2]
[387388948,1758711048264,-480.0,0.00019726,2]
[387388950,1758711048275,-617.75,0.00019726,2]
[387388952,1758711048286,-480.0,0.00019726,2]
[387388954,1758711048296,-695.47,0.00019726,2]
[387388956,1758711048306,-480.0,0.00019726,2]
[387388958,1758711048317,-480.0,0.00019726,2]
[387388960,1758711048328,-480.0,0.00019726,2]
[387388962,1758711048339,-480.0,0.00019726,2]
[387388964,1758711048350,-809.85,0.00019726,2]
[387388966,1758711048360,-480.0,0.00019726,2]
[387388968,1758711048370,-480.0,0.00019726,2]
[387388970,1758711048380,-480.0,0.00019726,2]
[387388972,1758711048390,-1863.45,0.00019726,2]
[387388974,1758711048400,-558.42,0.00019726,2]
[387388976,1758711048410,-480.0,0.00019726,2]
[387388978,1758711048422,-480.0,0.00019726,2]
[387388980,1758711048431,-934.43,0.00019726,2]
[387388983,1758711048442,-480.0,0.00019726,2]
[387388984,1758711048452,-480.0,0.00019726,2]
[387388986,1758711048462,-493.25,0.00019726,2]
[387388989,1758711048472,-480.0,0.00019726,2]
[387388991,1758711048483,-2653.43,0.00019726,2]
[387388993,1758711048493,-480.0,0.00019726,2]
[387388995,1758711048503,-480.0,0.00019726,2]
[387388997,1758711048512,-480.0,0.00019757,2]
[387388999,1758711048522,-486.52723223,0.00019757,2]
[387389001,1758711048532,-480.0,0.00019757,2]
[387389002,1758711048541,-480.0,0.00019757,2]
[387389004,1758711048551,-480.0,0.00019757,2]
[387389006,1758711048561,-480.0,0.00019757,2]
[387389008,1758711048570,-500.0,0.00019773,2]
[387389011,1758711048580,-584.59082076,0.00019773,2]
[387389012,1758711048591,-2098.98842304,0.000199,2]
[387389015,1758711048602,-503.04179346,0.00019921,2]
[387389017,1758711048612,-1000.0,0.00019921,2]
[387389019,1758711048624,-500.0,0.00019921,2]
[387389021,1758711048633,-158.5997713,0.00019921,2]
[387389023,1758711048643,-1000.0,0.00019921,2]
[387389025,1758711048653,-500.0,0.00019921,2]
[387389026,1758711048662,-500.0,0.00019921,2]
[387389029,1758711048672,-507.75524515,0.00019921,2]
[387389031,1758711048682,-1000.0,0.00019921,2]
[387389033,1758711048693,-500.0,0.00019921,2]
[387389035,1758711048702,-1000.0,0.00019921,2]
[387389037,1758711048712,-500.0,0.00019921,2]
[387389039,1758711048721,-500.0,0.00019921,2]
[387389041,1758711048731,-480.0,0.0002,2]
[387389042,1758711048740,-480.0,0.0002,2]
[387389044,1758711048750,-480.0,0.0002,2]
[387389046,1758711048760,-480.0,0.0002,2]
[387389049,1758711048769,-480.0,0.0002,2]
[387389051,1758711048779,-482.88,0.0002,2]
[387389053,1758711048788,-480.0,0.0002,2]
[387389055,1758711048799,-480.0,0.0002,2]
[387389057,1758711048809,-480.0,0.0002,2]
[387389059,1758711048818,-480.0,0.0002,2]
[387389061,1758711048828,-480.0,0.0002,2]
[387389063,1758711048838,-480.0,0.0002,2]
[387389065,1758711048848,-480.0,0.0002,2]
[387389067,1758711048857,-480.0,0.0002,2]
[387389069,1758711048867,-480.0,0.0002,2]
[387389071,1758711048876,-480.0,0.0002,2]
[387389073,1758711048885,-580.09148748,0.0002,2]
[387389075,1758711048896,-480.0,0.0002,2]
[387389077,1758711048906,-480.0,0.0002,2]
[387389079,1758711048915,-480.0,0.0002,2]
[387389081,1758711048925,-480.0,0.0002,2]
[387389083,1758711048936,-480.0,0.0002,2]
[387389085,1758711048946,-480.0,0.0002,2]
[387389087,1758711048955,-480.0,0.0002,2]
[387389089,1758711048966,-480.0,0.0002,2]
[387389091,1758711048976,-622.13214251,0.0002,2]
[387389093,1758711048986,-506.69692709,0.0002,2]
[387389095,1758711048997,-480.0,0.0002,2]
[387389097,1758711049007,-480.0,0.0002,2]
[387389099,1758711049017,-394.38076173,0.0002,2]
[387389101,1758711049026,-480.0,0.0002,2]
[387389103,1758711049036,-480.0,0.0002,2]
[387389105,1758711049045,-480.0,0.0002,2]
[387389107,1758711049054,-188.26525313,0.0002,2]
[387389109,1758711049065,-480.0,0.0002,2]
[387389111,1758711049075,-480.0,0.0002,2]
[387389113,1758711049084,-223.18523235,0.0002,2]
[387389115,1758711049094,-480.0,0.0002,2]
[387389117,1758711049103,-537.71348532,0.0002,2]
[387389119,1758711049113,-480.0,0.0002,2]
[387389121,1758711049122,-480.0,0.0002,2]
[387389123,1758711049132,-480.0,0.0002,2]
[387389125,1758711049142,-528.92,0.0002,2]
[387389127,1758711049151,-480.0,0.0002,2]
[387389129,1758711049160,-480.0,0.0002,2]
[387389131,1758711049170,-560.70760609,0.0002,2]
[387389133,1758711049180,-480.0,0.0002,2]
[387389135,1758711049190,-480.0,0.0002,2]
[387389137,1758711049204,-480.0,0.0002,2]
[387389139,1758711049214,-480.0,0.0002,2]
[387389141,1758711049223,-938.58,0.0002,2]
[387389143,1758711049232,-480.0,0.0002,2]
[387389145,1758711049242,-480.0,0.0002,2]
[387389147,1758711049251,-598.37751565,0.0002,2]
[387389149,1758711049261,-157.33844956,0.0002,2]
[387389151,1758711049272,-622.61015034,0.0002,2]
[387389153,1758711049282,-480.0,0.0002,2]
[387389155,1758711049292,-480.0,0.0002,2]
[387389157,1758711049301,-610.5847783,0.0002,2]
[387389159,1758711049310,-545.12059536,0.0002,2]
[387389161,1758711049320,-480.0,0.0002,2]
[387389163,1758711049329,-480.0,0.0002,2]
[387389165,1758711049341,-480.0,0.0002,2]
[387389167,1758711049351,-531.92,0.0002,2]
[387389169,1758711049362,-623.25,0.0002,2]
[387389171,1758711049371,-480.0,0.0002,2]
[387389173,1758711049380,-480.0,0.0002,2]
[387389175,1758711049389,-480.0,0.0002,2]
[387389177,1758711049398,-526.82,0.0002,2]
[387389178,1758711049408,-480.0,0.0002,2]
[387389181,1758711049418,-239.62997964,0.0002,2]
[387389183,1758711049428,-480.0,0.0002,2]
[387389185,1758711049437,-480.0,0.0002,2]
[387389186,1758711049447,-617.75,0.0002,2]
[387389188,1758711049456,-480.0,0.0002,2]
[387389190,1758711049466,-695.47,0.0002,2]
[387389192,1758711049476,-480.0,0.0002,2]
[387389195,1758711049487,-480.0,0.0002,2]
[387389197,1758711049496,-809.85,0.0002,2]
[387389198,1758711049506,-480.0,0.0002,2]
[387389200,1758711049515,-480.0,0.0002,2]
[387389203,1758711049524,-480.0,0.0002,2]
[387389204,1758711049533,-1863.45,0.0002,2]
[387389206,1758711049543,-480.0,0.0002,2]
[387389208,1758711049552,-480.0,0.0002,2]
[387389210,1758711049561,-934.43,0.0002,2]
[387389212,1758711049570,-480.0,0.0002,2]
[387389214,1758711049581,-480.0,0.0002,2]
[387389216,1758711049590,-493.25,0.0002,2]
[387389218,1758711049599,-480.0,0.0002,2]
[387389220,1758711049608,-480.0,0.0002,2]
[387389222,1758711049618,-2653.43,0.0002,2]
[387389224,1758711049628,-480.0,0.0002,2]
[387389226,1758711049639,-480.0,0.00020031,2]
[387389228,1758711049648,-480.0,0.00020031,2]
[387389230,1758711049659,-480.0,0.00020031,2]
[387389232,1758711049669,-480.0,0.00020031,2]
[387389234,1758711049679,-480.0,0.00020273,2]
[387389236,1758711049690,-480.0,0.00020273,2]
[387389238,1758711049700,-480.0,0.00020273,2]
[387389240,1758711049709,-482.88,0.00020273,2]
[387389242,1758711049719,-480.0,0.00020273,2]
[387389244,1758711049728,-480.0,0.00020273,2]
[387389246,1758711049738,-480.0,0.00020273,2]
[387389247,1758711049747,-480.0,0.00020273,2]
[387389250,1758711049758,-480.0,0.00020273,2]
[387389251,1758711049767,-480.0,0.00020273,2]
[387389253,1758711049777,-480.0,0.00020273,2]
[387389255,1758711049787,-480.0,0.00020273,2]
[387389257,1758711049798,-480.0,0.00020273,2]
[387389259,1758711049810,-480.0,0.00020273,2]
[387389261,1758711049819,-480.0,0.00020273,2]
[387389263,1758711049829,-480.0,0.00020273,2]
[387389265,1758711049838,-480.0,0.00020273,2]
[387389267,1758711049848,-480.0,0.00020273,2]
[387389269,1758711049857,-480.0,0.00020273,2]
[387389271,1758711049866,-480.0,0.00020273,2]
[387389273,1758711049876,-480.0,0.00020273,2]
[387389275,1758711049886,-480.0,0.00020273,2]
[387389277,1758711049896,-480.0,0.00020273,2]
[387389279,1758711049905,-480.0,0.00020273,2]
[387389281,1758711049915,-480.0,0.00020273,2]
[387389283,1758711049926,-480.0,0.00020273,2]
[387389285,1758711049935,-480.0,0.00020273,2]
[387389287,1758711049944,-480.0,0.00020273,2]
[387389289,1758711049954,-480.0,0.00020273,2]
[387389291,1758711049964,-528.92,0.00020273,2]
[387389293,1758711049974,-480.0,0.00020273,2]
[387389295,1758711049983,-480.0,0.00020273,2]
[387389297,1758711049992,-566.88,0.00020273,2]
[387389299,1758711050001,-480.0,0.00020273,2]
[387389301,1758711050010,-480.0,0.00020273,2]
[387389303,1758711050020,-938.58,0.00020273,2]
[387389305,1758711050029,-480.0,0.00020273,2]
[387389307,1758711050039,-480.0,0.00020273,2]
[387389308,1758711050050,-313.27923297,0.00020273,2]
[387389310,1758711050059,-195.17436252,0.00020273,2]
[387389312,1758711050069,-308.95122085,0.00020273,2]
[387389314,1758711050079,-531.92,0.00020273,2]
[387389316,1758711050088,-309.72,0.00020273,2]
[387389318,1758711050098,-623.25,0.00020273,2]
[387389320,1758711050107,-480.0,0.00020273,2]
[387389322,1758711050116,-480.0,0.00020273,2]
[387389324,1758711050125,-526.82,0.00020273,2]
[387389326,1758711050135,-188.56102936,0.00020273,2]
[387389328,1758711050144,-480.0,0.00020273,2]
[387389330,1758711050153,-617.75,0.00020273,2]
[387389339,1758711050232,-459.74519663,0.00020273,2]
[387389341,1758711050247,-20.25480337,0.00020273,2]
[387389342,1758711050257,-695.47,0.00020273,2]
[387389344,1758711050266,-113.86054878,0.00020273,2]
[387396157,1758711191233,460.14,0.00022822,30]
[387396158,1758711191646,920.28,0.00023909,30]
[387396186,1758711248264,5000.0,0.0002011,13]
[387396187,1758711272241,2528.83170837,0.0002011,13]
[387396188,1758711276460,452.61,0.0002293,30]
[387396191,1758711363731,450.14,0.00023069,30]
[387396193,1758711448683,447.69,0.00020941,30]
[387396194,1758711449157,895.37,0.00021938,30]
[387396195,1758711449621,1343.06,0.00022935,30]
[387396196,1758711450146,1790.74,0.00023932,30]
[387396197,1758711458587,5000.0,0.0001922,14]
[387396198,1758711483022,5000.0,0.0001922,14]
[387396199,1758711507615,5000.0,0.0001922,14]
[387396200,1758711533040,5000.0,0.00018001,2]
[387396201,1758711534665,423.27,0.00021539,30]
[387396202,1758711535676,846.53,0.00022564,30]
[387396203,1758711536614,1269.8,0.0002359,30]
[387396204,1758711558105,4816.874217,0.00018001,2]
[387396205,1758711558127,183.125783,0.00018001,2]
[387396221,1758711583455,5000.0,0.00018001,2]
[387396222,1758711607459,5000.0,0.00018001,2]
[387396223,1758711620648,409.41,0.00023183,30]
[387396224,1758711633020,5000.0,0.0001922,14]
[387396225,1758711657483,5000.0,0.0001922,14]
[387396226,1758711681673,5000.0,0.00018001,2]
[387396227,1758711705650,0.01,0.00018001,2]
[387396228,1758711705676,4999.99,0.00018001,2]
[387396229,1758711708574,407.18,0.00023272,30]
[387396230,1758711730836,5000.0,0.00018001,2]
[387396231,1758711756485,0.02,0.00018001,2]
[387396232,1758711756505,4999.98,0.00018001,2]
[387396233,1758711772799,-160.42024546,0.00018055,2]
[387396234,1758711776140,-158.85816134,0.00018055,2]
[387396235,1758711779955,-233.78652718,0.00018055,2]
[387396236,1758711781661,-263.39481161,0.00018055,2]
[387396237,1758711789400,-200.61549064,0.00018055,2]
[387396238,1758711792804,-6.32808324,0.00018055,2]
[387396239,1758711792825,-278.80536465,0.0001806,2]
[387396240,1758711798438,404.96,0.0002223,30]
[387396241,1758711798896,809.92,0.00023289,30]
[387396242,1758711815631,180.0,0.00018001,2]
[387396243,1758711885579,404.24,0.00020933,30]
[387396244,1758711885977,808.49,0.00021929,30]
[387396245,1758711886496,1212.73,0.00022926,30]
[387396246,1758711887001,1616.98,0.00023923,30]
[387396247,1758711953910,1440.97477851,0.00029424,120]
[387396248,1758711967276,5000.0,0.0001922,14]
[387396249,1758711992885,5000.0,0.0001922,14]
[387396250,1758712012324,4820.03,0.00017669,2]
[387396251,1758712012347,1546.1975296,0.00017669,2]
[387396252,1758712018223,5000.0,0.00018001,2]
[387396254,1758712041895,3453.8124704,0.00018001,2]
[387396255,1758712041917,1546.1875296,0.00018001,2]
[387396257,1758712066405,5000.0,0.00018001,2]
[387396258,1758712090437,3453.8224704,0.00018001,2]
[387396259,1758712090460,1546.1775296,0.00018001,2]
[387396260,1758712115550,5000.0,0.00018001,2]
[387396261,1758712140970,3453.8324704,0.00018001,2]
[387396262,1758712140992,1546.1675296,0.00018001,2]
[387396263,1758712151217,227.86,0.00018,2]
[387396264,1758712165554,5000.0,0.00018001,2]
[387396265,1758712168603,1000.0,0.00017682,2]
[387396266,1758712190522,2225.9824704,0.00018001,2]
[387396267,1758712190545,2774.0175296,0.00018001,2]
[387396268,1758712215951,5000.0,0.00018001,2]
[387396287,1758712232595,-183.0791999,0.00018152,2]
[387396289,1758712232606,-666.0,0.00018155,2]
[387396291,1758712232615,-183.185783,0.00018155,2]
[387396294,1758712232624,-500.0,0.00018232,2]
[387396297,1758712232633,-211.06,0.000184,2]
[387396299,1758712232643,-658.262918,0.00018564,2]
[387396301,1758712232652,-204.52841022,0.00018978,2]
[387396303,1758712232661,-300.0,0.00019076,2]
[387396305,1758712232672,-1200.0,0.00019076,2]
[387396307,1758712232682,-10444.15743651,0.00019077,2]
[387396309,1758712232694,-1691.59999,0.00019077,2]
[387396311,1758712232705,-1167.17518856,0.00019077,2]
[387396406,1758712238482,-31511.23536583,0.00019077,2]
[387396418,1758712238589,-5185.8320191,0.00019077,2]
[387396420,1758712238598,-1200.0,0.00019077,2]
[387396422,1758712238608,-463.04188774,0.00019172,2]
[387396424,1758712238617,-300.0,0.00019172,2]
[387396426,1758712238626,-500.0,0.00019172,2]
[387396428,1758712238635,-500.0,0.00019172,2]
[387396430,1758712238645,-500.0,0.00019172,2]
[387396432,1758712238654,-500.0,0.00019172,2]
[387396433,1758712238663,-538.54881988,0.00019172,2]
[387396434,1758712238672,-500.0,0.00019172,2]
[387396435,1758712238681,-500.0,0.00019172,2]
[387396436,1758712238690,-500.0,0.00019172,2]
[387396437,1758712238699,-500.0,0.00019172,2]
[387396438,1758712238709,-500.0,0.00019172,2]
[387396439,1758712238718,-500.0,0.00019172,2]
[387396440,1758712238728,-500.0,0.00019172,2]
[387396441,1758712238737,-500.0,0.00019172,2]
[387396442,1758712238747,-500.0,0.00019172,2]
[387396443,1758712238756,-500.0,0.00019172,2]
[387396444,1758712238764,-500.0,0.00019172,2]
[387396445,1758712238773,-500.0,0.00019172,2]
[387396446,1758712238782,-500.0,0.00019172,2]
[387396447,1758712238791,-500.0,0.00019172,2]
[387396448,1758712238800,-500.0,0.00019172,2]
[387396449,1758712238808,-500.0,0.00019172,2]
[387396450,1758712238818,-500.0,0.00019172,2]
[387396451,1758712238828,-221.79258055,0.00019172,2]
[387396452,1758712238837,-500.0,0.00019172,2]
[387396453,1758712238846,-500.0,0.00019172,2]
[387396454,1758712238855,-500.0,0.00019172,2]
[387396455,1758712238864,-500.0,0.00019172,2]
[387396456,1758712238874,-331.44230189,0.00019177,2]
[387396457,1758712238883,-545.48048468,0.00019177,2]
[387396458,1758712238892,-568.04830506,0.00019177,2]
[387396459,1758712238901,-568.04830506,0.00019177,2]
[387396460,1758712238912,-568.04830506,0.00019177,2]
[387396461,1758712238922,-568.04830506,0.00019177,2]
[387396462,1758712238931,-568.04830506,0.00019177,2]
[387396463,1758712238941,-568.04830506,0.00019177,2]
[387396464,1758712238950,-568.04830506,0.00019177,2]
[387396465,1758712238960,-568.04830506,0.00019177,2]
[387396466,1758712238969,-568.04830506,0.00019177,2]
[387396467,1758712238978,-568.04830506,0.00019177,2]
[387396468,1758712238987,-568.04830506,0.00019177,2]
[387396469,1758712238996,-568.04830506,0.00019177,2]
[387396470,1758712239005,-568.04830506,0.00019177,2]
[387396471,1758712239014,-568.04830506,0.00019177,2]
[387396472,1758712239023,-568.04830506,0.00019177,2]
[387396473,1758712239032,-568.04830506,0.00019177,2]
[387396474,1758712239041,-603.00512383,0.00019177,2]
[387396475,1758712239050,-603.00512383,0.00019177,2]
[387396476,1758712239060,-603.00512383,0.00019177,2]
[387396477,1758712239069,-603.00512383,0.00019177,2]
[387396478,1758712239078,-603.00512383,0.00019177,2]
[387396480,1758712239087,-603.00512383,0.00019177,2]
[387396482,1758712239096,-603.00512383,0.00019177,2]
[387396484,1758712239105,-603.00512383,0.00019177,2]
[387396486,1758712239115,-603.00512383,0.00019177,2]
[387396488,1758712239123,-603.00512383,0.00019177,2]
[387396490,1758712239132,-603.00512383,0.00019177,2]
[387396492,1758712239142,-1026.9359988,0.00019177,2]
[387396494,1758712239151,-480.0,0.00019178,2]
[387396496,1758712239160,-480.0,0.00019178,2]
[387396498,1758712239169,-480.0,0.00019178,2]
[387396500,1758712239178,-492.24256287,0.00019178,2]
[387396502,1758712239187,-480.0,0.00019178,2]
[387396504,1758712239197,-480.0,0.00019178,2]
[387396506,1758712239207,-459.4226814,0.00019178,2]
[387396507,1758712239215,-480.0,0.00019178,2]
[387396509,1758712239225,-500.0,0.00019178,2]
[387396511,1758712239234,-500.0,0.00019178,2]
[387396513,1758712239244,-500.0,0.00019178,2]
[387396515,1758712239253,-480.0,0.00019178,2]
[387396518,1758712239263,-480.0,0.00019178,2]
[387396520,1758712239273,-480.0,0.00019178,2]
[387396522,1758712239282,-480.0,0.00019178,2]
[387396524,1758712239291,-480.0,0.00019178,2]
[387396525,1758712239301,-480.0,0.00019178,2]
[387396527,1758712239310,-480.0,0.00019178,2]
[387396529,1758712239319,-480.0,0.00019178,2]
[387396531,1758712239328,-485.07611404,0.00019178,2]
[387396533,1758712239338,-1000.0,0.00019178,2]
[387396535,1758712239347,-480.0,0.00019178,2]
[387396537,1758712239356,-480.0,0.00019178,2]
[387396539,1758712239365,-480.0,0.00019178,2]
[387396541,1758712239375,-480.0,0.00019178,2]
[387396542,1758712239384,-500.0,0.00019178,2]
[387396543,1758712239393,-500.0,0.00019178,2]
[387396544,1758712239403,-500.0,0.00019178,2]
[387396545,1758712239412,-480.0,0.00019178,2]
[387396546,1758712239421,-480.0,0.00019178,2]
[387396547,1758712239431,-480.0,0.00019178,2]
[387396549,1758712239440,-480.0,0.00019178,2]
[387396550,1758712239449,-480.0,0.00019178,2]
[387396551,1758712239458,-480.0,0.00019178,2]
[387396552,1758712239468,-480.0,0.00019178,2]
[387396553,1758712239478,-482.90739514,0.00019178,2]
[387396554,1758712239487,-480.0,0.00019178,2]
[387396555,1758712239497,-491.22142967,0.00019178,2]
[387396556,1758712239506,-480.0,0.00019178,2]
[387396557,1758712239515,-480.0,0.00019178,2]
[387396558,1758712239525,-480.0,0.00019178,2]
[387396559,1758712239534,-480.0,0.00019178,2]
[387396560,1758712239543,-480.0,0.00019178,2]
[387396561,1758712239552,-504.27,0.00019178,2]
[387396562,1758712239562,-480.0,0.00019178,2]
[387396563,1758712239571,-480.0,0.00019178,2]
[387396564,1758712239580,-480.0,0.00019178,2]
[387396565,1758712239589,-480.0,0.00019178,2]
[387396566,1758712239599,-480.0,0.00019178,2]
[387396567,1758712239608,-480.0,0.00019178,2]
[387396568,1758712239618,-483.31572892,0.00019178,2]
[387396569,1758712239628,-480.0,0.00019178,2]
[387396570,1758712239638,-212.28233121,0.00019178,2]
[387396571,1758712239647,-480.0,0.00019178,2]
[387396572,1758712239656,-480.0,0.00019178,2]
[387396573,1758712239666,-592.54266659,0.00019178,2]
[387396574,1758712239675,-164.55342333,0.00019178,2]
[387396575,1758712239685,-480.0,0.00019178,2]
[387396576,1758712239695,-480.0,0.00019178,2]
[387396577,1758712239704,-480.0,0.00019178,2]
[387396578,1758712239714,-480.0,0.00019178,2]
[387396579,1758712239723,-480.0,0.00019178,2]
[387396580,1758712239733,-480.0,0.00019178,2]
[387396581,1758712239743,-480.0,0.00019178,2]
[387396582,1758712239753,-480.0,0.00019178,2]
[387396583,1758712239762,-480.0,0.00019178,2]
[387396584,1758712239771,-480.0,0.00019178,2]
[387396585,1758712239780,-480.0,0.00019178,2]
[387396586,1758712239791,-480.0,0.00019178,2]
[387396587,1758712239800,-480.0,0.00019178,2]
[387396588,1758712239810,-480.0,0.00019178,2]
[387396589,1758712239819,-480.0,0.00019178,2]
[387396590,1758712239831,-480.0,0.00019178,2]
[387396591,1758712239842,-480.0,0.00019178,2]
[387396592,1758712239851,-480.0,0.00019178,2]
[387396593,1758712239861,-480.0,0.00019178,2]
[387396594,1758712239870,-480.0,0.00019178,2]
[387396595,1758712239880,-480.0,0.00019178,2]
[387396596,1758712239890,-500.0,0.00019178,2]
[387396597,1758712239899,-480.0,0.00019178,2]
[387396598,1758712239909,-480.0,0.00019178,2]
[387396599,1758712239918,-480.0,0.00019178,2]
[387396600,1758712239928,-480.0,0.00019178,2]
[387396601,1758712239938,-480.0,0.00019178,2]
[387396602,1758712239947,-484.85169255,0.00019178,2]
[387396603,1758712239957,-495.892349,0.00019178,2]
[387396604,1758712239967,-480.0,0.00019178,2]
[387396605,1758712239975,-480.0,0.00019178,2]
[387396606,1758712239985,-523.97,0.00019178,2]
[387396607,1758712239994,-480.0,0.00019178,2]
[387396609,1758712240003,-480.0,0.00019178,2]
[387396610,1758712240012,-480.0,0.00019178,2]
[387396611,1758712240022,-480.0,0.00019178,2]
[387396612,1758712240031,-480.3695089,0.00019178,2]
[387396613,1758712240042,-480.0,0.00019178,2]
[387396614,1758712240052,-321.27739759,0.00019178,2]
[387396615,1758712240062,-480.0,0.00019178,2]
[387396616,1758712240071,-480.0,0.00019178,2]
[387396617,1758712240081,-480.0,0.00019178,2]
[387396618,1758712240090,-480.0,0.00019178,2]
[387396619,1758712240100,-480.0,0.00019178,2]
[387396620,1758712240116,-480.0,0.00019178,2]
[387396621,1758712240134,-480.0,0.00019178,2]
[387396622,1758712240148,-500.0,0.00019178,2]
[387396623,1758712240158,-557.70140937,0.00019178,2]
[387396624,1758712240169,-480.0,0.00019178,2]
[387396625,1758712240178,-480.0,0.00019178,2]
[387396626,1758712240187,-480.0,0.00019178,2]
[387396627,1758712240196,-480.0,0.00019178,2]
[387396628,1758712240205,-480.0,0.00019178,2]